fUSD/lending_fUSD_20240829
["ID","MTS","AMOUNT","RATE_DAILY","PERIOD"]
[336581569,1724955256436,-577.082919,0.00035998,120]
[336581570,1724955256463,-50000.0,0.00036,36]
[336581571,1724955256487,-151.0,0.00036,120]
[336581572,1724955256511,-266.08438069,0.00036,120]
[336581573,1724955256534,-2000.0,0.00036,120]
[336581574,1724955256558,-150.0,0.00036,120]
[336581575,1724955256582,-8605.79338742,0.00036,120]
[336581576,1724955256608,-150.0,0.0003605,120]
[336581577,1724955256632,-150.0,0.00036084,120]
[336581578,1724955256659,-271.082919,0.00036098,119]
[336581579,1724955256687,-5393.3,0.00036114,54]
[336581580,1724955256716,-331.082919,0.00036198,119]
[336581581,1724955256741,-150.0,0.00036247,120]
[336581582,1724955256767,-150.0,0.00036285,120]
[336581583,1724955256791,-577.082919,0.00036298,120]
[336581584,1724955256816,-150.0,0.00036341,120]
[336581585,1724955256840,-150.0,0.00036344,120]
[336581586,1724955256866,-150.0,0.00036354,120]
[336581587,1724955256891,-331.082919,0.00036398,119]
[336581588,1724955256919,-150.0,0.00036405,120]
[336581589,1724955256943,-496.35,0.00036459,30]
[336581590,1724955256967,-271.082919,0.00036498,119]
[336581591,1724955256991,-11512.19194415,0.000365,30]
[336581592,1724955257016,-150.0,0.00036559,120]
[336581593,1724955257040,-272.32589958,0.00036594,30]
[336581594,1724955257063,-190.91693015,0.00036594,30]
[336581595,1724955257087,-2238.41657818,0.00036594,30]
[336581596,1724955257112,-538.86888066,0.00036595,30]
[336581597,1724955257136,-331.082919,0.00036598,119]
[336581598,1724955257164,-2238.41657818,0.00036599,30]
[336581599,1724955257188,-2238.41657818,0.00036612,30]
[336581600,1724955257215,-3015.65213461,0.00036617,30]
[336581601,1724955257240,-538.86888066,0.00036623,30]
[336581602,1724955257265,-200.0,0.0003663,120]
[336581603,1724955257289,-538.86888066,0.00036632,30]
[336581604,1724955257313,-847.05031563,0.00036634,30]
[336581605,1724955257337,-847.05031563,0.00036635,30]
[336581606,1724955257362,-272.32589958,0.00036637,30]
[336581607,1724955257387,-847.05031563,0.00036639,30]
[336581608,1724955257415,-2238.41657818,0.0003664,30]
[336581609,1724955257439,-538.86888066,0.00036643,30]
[336581610,1724955257463,-847.05031563,0.00036645,30]
[336581611,1724955257489,-3015.65213461,0.00036646,30]
[336581612,1724955257514,-190.91693015,0.00036649,30]
[336581613,1724955257539,-190.91693015,0.00036653,30]
[336581614,1724955257563,-3015.65213461,0.00036657,30]
[336581615,1724955257586,-3015.65213461,0.00036661,30]
[336581616,1724955257610,-272.32589958,0.00036665,30]
[336581617,1724955257634,-2238.41657818,0.00036667,30]
[336581618,1724955257660,-272.32589958,0.00036668,30]
[336581619,1724955257687,-847.05031563,0.0003667,30]
[336581620,1724955257711,-272.32589958,0.00036671,30]
[336581621,1724955257736,-190.91693015,0.00036677,30]
[336581622,1724955257761,-190.91693015,0.00036682,30]
[336581623,1724955257787,-538.86888066,0.00036694,30]
[336581624,1724955257811,-3015.65213461,0.00036697,30]
[336581625,1724955257834,-577.082919,0.00036698,120]
[336581626,1724955257858,-151.0,0.00036712,120]
[336581627,1724955257883,-271.082919,0.00036798,119]
[336581628,1724955257906,-3568.989,0.000368,30]
[336581629,1724955257932,-2197256.50419881,0.000368,60]
[336581630,1724955257958,-150.0,0.00036801,120]
[336581631,1724955257982,-150.0,0.00036851,120]
[336581632,1724955258006,-2000.0,0.00036871,120]
[336581633,1724955258030,-157.082914,0.00036898,119]
[336581634,1724955258054,-764.45582726,0.000369,30]
[336581635,1724955258080,-271.082919,0.00036998,119]
[336581636,1724955258107,-15695.08440283,0.00037,37]
[336581637,1724955259821,152.52,0.00010959,2]
[336581638,1724955270378,-548.0,0.00030613,30]
[336581639,1724955270412,-768.0,0.00033674,30]
[336581640,1724955270449,-34304.91559717,0.00037,37]
[336581641,1724955270473,-800.0,0.00037,120]
[336581642,1724955270496,-2007.41369701,0.00037,90]
[336581643,1724955270520,-10000.0,0.00037,120]
[336581644,1724955270543,-899999.0,0.00037,90]
[336581645,1724955270566,-653.0,0.00037042,30]
[336581646,1724955270859,-577.082919,0.00037098,120]
[336581647,1724955270885,-150.0,0.00037159,120]
[336581648,1724955270910,-271.082919,0.00037198,119]
[336581649,1724955270937,-150.0,0.00037241,120]
[336581650,1724955270963,-150.0,0.00037248,120]
[336581651,1724955270988,-577.082919,0.00037298,120]
[336581652,1724955271013,-150.0,0.00037307,120]
[336581653,1724955271038,-150.0,0.00037391,120]
[336581654,1724955271062,-271.082919,0.00037398,119]
[336581655,1724955271085,-1200000.0,0.0003744,30]
[336581656,1724955271110,-3099.21122334,0.00037498,119]
[336581657,1724955271135,-15000.0,0.000375,30]
[336581658,1724955271159,-150.0,0.00037539,120]
[336581659,1724955271184,-150.0,0.00037555,120]
[336581660,1724955271208,-577.082919,0.00037598,120]
[336581661,1724955271234,-150.0,0.0003763,120]
[336581662,1724955271258,-150.0,0.00037647,120]
[336581663,1724955271282,-151.0,0.00037671,120]
[336581664,1724955271305,-271.082919,0.00037698,119]
[336581665,1724955271330,-150.0,0.00037747,120]
[336581666,1724955271356,-331.082919,0.00037798,119]
[336581667,1724955271379,-2000.0,0.00037892,120]
[336581668,1724955271403,-271.082919,0.00037898,119]
[336581669,1724955271429,-331.082919,0.00037998,119]
[336581670,1724955271453,-316.20658369,0.00037999,120]
[336581671,1724955271482,-50000.0,0.00038,38]
[336581672,1724955271506,-4617.26132707,0.00038,120]
[336581673,1724955271530,-11512.19194415,0.00038,30]
[336581674,1724955271554,-755.7285108,0.00038,120]
[336581675,1724955271577,-5000.0,0.00038,120]
[336581676,1724955271601,-5000.0,0.00038,120]
[336581677,1724955271626,-5000.0,0.00038,60]
[336581678,1724955271650,-5000.0,0.00038,60]
[336581679,1724955271676,-1000.0,0.00038,120]
[336581680,1724955271702,-2000.0,0.00038,120]
[336581681,1724955271726,-2000.0,0.00038,120]
[336581682,1724955271750,-150.0,0.00038,120]
[336581683,1724955271775,-10133.53,0.00038,120]
[336581684,1724955271800,-6157.30066853,0.00038,120]
[336581685,1724955271824,-717049.49417724,0.00038,90]
[336581686,1724955275972,-150.0,0.00032892,120]
[336581687,1724955276015,-282950.50582276,0.00038,90]
[336581688,1724955276040,-1736.23467803,0.00038,120]
[336581689,1724955276066,-3252.36583004,0.00038,120]
[336581690,1724955276092,-150.0,0.00038012,120]
[336581691,1724955276119,-577.082919,0.00038098,120]
[336581692,1724955276144,-150.0,0.00038126,120]
[336581693,1724955276170,-331.082919,0.00038198,119]
[336581694,1724955276198,-271.082919,0.00038298,119]
[336581695,1724955276225,-1267.56,0.00038356,120]
[336581696,1724955276250,-500.0,0.00038356,120]
[336581697,1724955276275,-200.0,0.00038356,60]
[336581698,1724955276301,-331.082919,0.00038398,119]
[336581699,1724955276326,-549.46950077,0.000384,33]
[336581700,1724955276351,-500000.0,0.0003844,30]
[336581701,1724955276378,-150.0,0.00038463,120]
[336581702,1724955276404,-577.082919,0.00038498,120]
[336581703,1724955276430,-331.082919,0.00038598,119]
[336581704,1724955276455,-151.0,0.0003863,120]
[336581705,1724955276481,-150.0,0.00038649,120]
[336581706,1724955276507,-271.082919,0.00038698,119]
[336581707,1724955276798,-400.0285942,0.00038705,120]
[336581708,1724955276824,-331.082919,0.00038798,119]
[336581709,1724955276848,-250.0,0.000388,110]
[336581710,1724955276873,-665588.02926598,0.000388,60]
[336581711,1724955276899,-1378.37391938,0.0003888,90]
[336581712,1724955276926,-271.082919,0.00038898,119]
[336581713,1724955276950,-92452.95829569,0.000389,30]
[336581714,1724955276975,-1267.56,0.00038904,120]
[336581715,1724955277001,-500.0,0.00038904,120]
[336581716,1724955277025,-2000.0,0.00038913,120]
[336581717,1724955277050,-33615.0,0.0003899,33]
[336581718,1724955277075,-331.082919,0.00038998,119]
[336581719,1724955277102,-50000.0,0.00039,39]
[336581720,1724955277126,-160.0,0.00039,30]
[336581721,1724955277150,-286.7434,0.00039,120]
[336581722,1724955277175,-1548.65605222,0.00039,120]
[336581723,1724955277201,-199.24526482,0.00039,120]
[336581724,1724955277226,-5000.0,0.00039,120]
[336581725,1724955277249,-2200.0,0.00039,120]
[336581726,1724955277273,-10019.51080865,0.00039,120]
[336581727,1724955277298,-600.0,0.00039,120]
[336581728,1724955277324,-600.0,0.00039,120]
[336581729,1724955277348,-600.0,0.00039,120]
[336581730,1724955277373,-51000.0,0.00039,120]
[336581731,1724955277397,-4028.9467818,0.00039,30]
[336581732,1724955277424,-600.0,0.00039,120]
[336581733,1724955277450,-600.0,0.00039,120]
[336581734,1724955277476,-1000000.0,0.00039,90]
[336581735,1724955277501,-127732.0,0.00039,30]
[336581736,1724955277525,-20378.0,0.00039,30]
[336581737,1724955277549,-13289.0,0.00039,120]
[336581738,1724955277574,-84753.17664265,0.00039,30]
[336581739,1724955277598,-751.56194657,0.00039,31]
[336581740,1724955277621,-9820.54603836,0.00039,120]
[336581741,1724955277646,-150.0,0.00039012,120]
[336581742,1724955277672,-577.082919,0.00039098,120]
[336581743,1724955277701,-331.082919,0.00039198,119]
[336581744,1724955277726,-11799.80227,0.00039208,30]
[336581745,1724955277752,-10179.81181509,0.0003924,45]
[336581746,1724955277777,-271.082919,0.00039298,119]
[336581747,1724955277801,-91.83512599,0.00039316,120]
[336581748,1724955673488,500.0,0.00010959,2]
[336581749,1724955674506,979.0,0.00010959,2]
[336581751,1724955792626,269.65,0.00010959,2]
[336581753,1724955986528,600.0,0.00010959,2]
[336581756,1724956078282,164.37647516,0.0001,2]
[336581760,1724956155294,-300.0,0.00010987,2]
[336581761,1724956155316,-13552.1779342,0.00010988,2]
[336581762,1724956155337,-1050.0,0.0001099,2]
[336581763,1724956155357,-5473.50171955,0.00010998,2]
[336581764,1724956166551,-420.0,0.00012073,2]
[336581766,1724956203085,151.08468512,0.0001,2]
[336581782,1724956232338,-1205.42422,0.00013381,2]
[336581783,1724956232352,-692.35819911,0.00013381,2]
[336581785,1724956232367,-376.47285562,0.00013381,2]
[336581788,1724956232402,-3594.21012527,0.00013381,2]
[336581789,1724956232416,-1837.92341953,0.00013481,2]
[336581790,1724956232425,-150.99,0.00016022,2]
[336581791,1724956232435,-179.99,0.00016022,2]
[336581792,1724956232444,-226.12990266,0.00016022,2]
[336581793,1724956232456,-276.87009734,0.00016022,2]
[336581794,1724956232466,-175.26,0.00017309,2]
[336581795,1724956232476,-269.65,0.00017592,2]
[336581796,1724956232486,-499.99,0.00017592,2]
[336581797,1724956232495,-19.90990266,0.0001777,2]
[336581798,1724956232507,-336.7336,0.0001777,2]
[336581799,1724956232518,-643.35649734,0.0001777,2]
[336581800,1724956232528,-543.37,0.0001777,2]
[336581801,1724956232537,-140.12799866,0.00017912,2]
[336581802,1724956232548,-71.72200134,0.00017912,2]
[336581803,1724956232558,-150.0,0.00018087,2]
[336581804,1724956232568,-2622.86703866,0.00018088,2]
[336581805,1724956232580,-1136.7237882,0.00018088,2]
[336581806,1724956232591,-300.6,0.00018088,2]
[336581807,1724956232602,-2600.00989008,0.00018088,2]
[336581808,1724956232618,-4790.59023949,0.00018088,2]
[336581835,1724956238588,-304.94405594,0.0001777,2]
[336581837,1724956238962,-209.95594406,0.0001777,2]
[336581838,1724956238972,-572.57560511,0.00018088,2]
[336581839,1724956238984,-703.01355159,0.00018088,2]
[336581840,1724956239007,-5822.32424264,0.00018088,2]
[336581890,1724956239569,-16451.29564423,0.00018088,2]
[336581892,1724956239582,-2378.18524789,0.00018116,2]
[336581894,1724956239593,-2.23475211,0.00018116,2]
[336581896,1724956239602,-150.99,0.00018116,2]
[336581898,1724956239611,-150.0,0.00019,2]
[336581900,1724956239620,-55.11009953,0.000199,3]
[336581903,1724956239635,-914.0500234,0.000199,3]
[336581905,1724956239647,-2166.78342138,0.000199,3]
[336581907,1724956239658,-1255.0,0.000199,3]
[336581980,1724956240477,-235.72912086,0.000199,3]
[336581982,1724956240487,-1000.0,0.00019991,2]
[336581984,1724956240496,-325.87087914,0.0002,2]
[336581987,1724956240516,-331.98,0.0002,2]
[336581991,1724956240546,-310.14912086,0.0002,2]
[336581993,1724956240556,-2792.15087914,0.0002,2]
[336582006,1724956240675,-2207.84912086,0.0002,2]
[336582008,1724956240685,-211.31,0.00020151,2]
[336582010,1724956240694,-1007.22,0.00021,2]
[336582012,1724956240704,-99.06925662,0.00021152,2]
[336582014,1724956240715,-150.93074338,0.00021152,2]
[336582016,1724956240724,-185.413,0.00021156,2]
[336582018,1724956240733,-1000.0,0.00021162,3]
[336582020,1724956240743,-250.0,0.00021171,2]
[336582022,1724956240752,-1218.75625662,0.00021223,2]
[336582024,1724956240764,-431.24374338,0.00021223,2]
[336582026,1724956240774,-619.94,0.00021265,2]
[336582028,1724956240783,-496.37,0.00021618,30]
[336582030,1724956240793,-200.33,0.00021838,2]
[336582032,1724956240802,-1500.0,0.00021877,2]
[336582034,1724956240812,-150.0,0.00021918,2]
[336582036,1724956240823,-400.0,0.00021958,2]
[336582038,1724956240835,-4560.435,0.00022005,2]
[336582040,1724956240844,-183.9,0.00022019,2]
[336582042,1724956240853,-150.0,0.00022069,2]
[336582044,1724956240862,-1007.22,0.0002211,2]
[336582046,1724956240872,-250.0,0.0002219,2]
[336582047,1724956240881,-1000.0,0.00022212,2]
[336582049,1724956240890,-211.31,0.00022415,2]
[336582051,1724956240899,-4713.29,0.00022422,2]
[336582053,1724956240909,-1000.0,0.00022466,2]
[336582055,1724956240919,-150.0,0.00022495,2]
[336582057,1724956240928,-169.7,0.00022979,2]
[336582060,1724956240938,-169.7,0.00022985,2]
[336582061,1724956240947,-169.7,0.00022991,2]
[336582064,1724956240959,-169.7,0.00022997,2]
[336582066,1724956240969,-169.7,0.00023003,2]
[336582068,1724956240978,-169.7,0.00023009,2]
[336582070,1724956240988,-169.7,0.00023015,2]
[336582071,1724956240997,-169.7,0.00023021,2]
[336582073,1724956241010,-169.7,0.00023027,2]
[336582075,1724956241020,-169.7,0.00023033,2]
[336582077,1724956241031,-169.7,0.00023039,2]
[336582079,1724956241041,-169.7,0.00023045,2]
[336582081,1724956241051,-169.7,0.00023051,2]
[336582083,1724956241061,-169.7,0.00023057,2]
[336582085,1724956241070,-169.7,0.00023063,2]
[336582087,1724956241087,-169.7,0.00023069,2]
[336582089,1724956241097,-150.0,0.00023071,2]
[336582091,1724956241107,-169.7,0.00023075,2]
[336582093,1724956241116,-169.7,0.00023081,2]
[336582095,1724956241125,-169.7,0.00023088,2]
[336582097,1724956241135,-169.7,0.00023094,2]
[336582099,1724956241144,-1007.22,0.0002322,2]
[336582101,1724956241154,-150.0,0.00023648,2]
[336582103,1724956241164,-219.85363229,0.000238,5]
[336582177,1724956241891,-3249.95340702,0.000238,5]
[336582180,1724956241902,-1270.32168049,0.000238,5]
[336582182,1724956241914,-1350.37068652,0.000238,5]
[336582184,1724956241923,-300.0,0.00024212,90]
[336582186,1724956241932,-106.15694997,0.00024225,2]
[336582249,1724956242562,-163.49305003,0.00024225,2]
[336582250,1724956242572,-150.0,0.00024225,2]
[336582251,1724956242584,-2243.08873935,0.00024298,2]
[336582252,1724956242595,-1585.78305731,0.00024298,2]
[336582253,1724956242606,-1960.00600334,0.00024298,2]
[336582254,1724956242615,-1007.22,0.0002433,2]
[336582255,1724956242624,-314.67399666,0.00024434,2]
[336582340,1724956243423,-685.32600334,0.00024434,2]
[336582342,1724956243432,-180.0,0.00024511,2]
[336582344,1724956243442,-211.31,0.00024679,2]
[336582345,1724956243451,-4921.96399666,0.00024702,2]
[336582360,1724956243526,-983.48847303,0.00024702,2]
[336582363,1724956243537,-1275.0,0.00024702,2]
[336582368,1724956243553,-2815.90000001,0.00024702,2]
[336582496,1724956244637,-711.82512358,0.00024702,2]
[336582498,1724956244648,-591.9999999,0.00024702,2]
[336582642,1724956246504,-1500.624835,0.00019,2]
[336582644,1724956246515,-1406.47573357,0.00019,2]
[336582646,1724956246527,-2629.70335,0.00019,2]
[336582648,1724956246538,-904.23596,0.00019,2]
[336582651,1724956246556,-1680.70532988,0.00019,2]
[336582652,1724956246567,-1301.37556257,0.00019,2]
[336582662,1724956246668,-890.66070971,0.00019,2]
[336582664,1724956246679,-1430.54589821,0.00019,2]
[336582666,1724956246690,-2695.8483424,0.00019,2]
[336582668,1724956246702,-14203.47626631,0.00019,2]
[336582669,1724956246711,-3415.06199607,0.00024702,2]
[336582671,1724956246721,-400.0,0.00024703,120]
[336582673,1724956246730,-5400.60895361,0.00024716,2]
[336582675,1724956246745,-9314.63063561,0.00024716,2]
[336582677,1724956246755,-27532.89619931,0.00024731,2]
[336582679,1724956246764,-496.37,0.0002478,30]
[336582680,1724956246774,-20005.0,0.000248,5]
[336582682,1724956246783,-150.0,0.00024802,2]
[336582684,1724956246793,-6558.6065,0.0002481,2]
[336582686,1724956246802,-11502.4223909,0.00024821,4]
[336582688,1724956246811,-319.26138391,0.00024821,2]
[336582689,1724956246820,-319.26138391,0.00024823,2]
[336582691,1724956246832,-319.26138391,0.00024825,2]
[336582692,1724956246841,-319.26138391,0.00024827,2]
[336582694,1724956246850,-319.26138391,0.00024829,2]
[336582696,1724956246860,-285.20473214,0.00024831,2]
[336582698,1724956246869,-354.6886366,0.00024831,2]
[336582699,1724956246879,-2948.15816662,0.00024831,2]
[336582701,1724956246888,-319.26138391,0.00024831,2]
[336582703,1724956246897,-4380.0,0.000249,4]
[336582704,1724956246906,-496.0,0.000249,8]
[336582705,1724956246916,-496.0,0.000249,8]
[336582706,1724956246925,-23004.8447819,0.000249,4]
[336582707,1724956246935,-23004.8447819,0.00024901,4]
[336582708,1724956246944,-115024.223909,0.00024911,4]
[336582709,1724956246954,-26018.5028276,0.00024911,4]
[336582710,1724956246964,-150.84,0.00024911,2]
[336582711,1724956246973,-13009.2514138,0.00024919,4]
[336582712,1724956246983,-500.0,0.0002492,2]
[336582713,1724956246994,-500.0,0.0002492,2]
[336582714,1724956247009,-500.0,0.0002492,2]
[336582715,1724956247018,-516.2164006,0.0002492,2]
[336582716,1724956247029,-500.0,0.0002492,2]
[336582717,1724956247039,-500.0,0.0002492,2]
[336582718,1724956247048,-500.0,0.0002492,2]
[336582719,1724956247057,-500.0,0.0002492,2]
[336582720,1724956247066,-500.0,0.0002492,2]
[336582721,1724956247079,-500.0,0.0002492,2]
[336582722,1724956247089,-500.0,0.0002492,2]
[336582724,1724956247098,-500.0,0.0002492,2]
[336582726,1724956247107,-205.71778009,0.0002492,2]
[336582728,1724956247116,-500.0,0.0002492,2]
[336582730,1724956247126,-97087.39583386,0.00024921,4]
[336582732,1724956247138,-859.59283247,0.00024921,4]
[336582733,1724956247149,-335.451,0.00024921,4]
[336582778,1724956353432,158.04,0.00010959,2]
[336582787,1724957431654,-250.0,0.00012,2]
[336582788,1724957431664,-766.0,0.00013999,2]
[336582789,1724957431674,-300.0,0.00014,2]
[336582790,1724957431692,-10261.1651,0.000159,2]
[336582791,1724957431704,-350.0,0.00016,2]
[336582792,1724957431714,-150.0,0.00017987,2]
[336582793,1724957431724,-400.0,0.00018,2]
[336582794,1724957431734,-499.99,0.00018,2]
[336582795,1724957431743,-19.57054993,0.00019,6]
[336582796,1724957431756,-130.42945007,0.00019,6]
[336582797,1724957431771,-229.64,0.00019463,2]
[336582798,1724957431781,-150.0,0.000195,7]
[336582799,1724957431790,-150.0,0.0002,7]
[336582800,1724957431800,-425.35088478,0.0002,2]
[336582801,1724957431812,-517.85511205,0.0002,2]
[336582802,1724957431824,-820.87408869,0.0002,2]
[336582803,1724957431848,-138235.91991448,0.0002,2]
[336582804,1724957431858,-150.0,0.000205,8]
[336582805,1724957431867,-150.0,0.00021,9]
[336582806,1724957431877,-995.68,0.00021,2]
[336582807,1724957431887,-249.19468293,0.00021177,2]
[336582808,1724957431897,-1000.0,0.00021188,5]
[336582809,1724957431907,-1000.0,0.00021188,3]
[336582810,1724957431917,-1000.0,0.00021188,3]
[336582811,1724957431927,-1000.0,0.00021188,2]
[336582812,1724957431936,-1768.98,0.00021249,2]
[336582813,1724957431946,-160.0,0.00021418,2]
[336582814,1724957431956,-23900.0,0.00021431,2]
[336582815,1724957431966,-150.0,0.000215,9]
[336582816,1724957431976,-805.04,0.00021544,2]
[336582817,1724957431986,-1236.61,0.00021563,2]
[336582818,1724957431996,-250.0,0.00021568,2]
[336582819,1724957432006,-425.46,0.00021589,30]
[336582820,1724957432018,-240.0,0.00021596,2]
[336582821,1724957432028,-1500.0,0.00021652,2]
[336582822,1724957432038,-34838.77,0.00021679,2]
[336582823,1724957432048,-1000.0,0.00021692,2]
[336582824,1724957432058,-250.0,0.00021698,2]
[336582825,1724957432070,-229.64,0.00021727,2]
[336582826,1724957432081,-3927.74,0.00021918,2]
[336582827,1724957432091,-150.0,0.00021918,2]
[336582828,1724957432101,-150.0,0.00022,10]
[336582829,1724957432111,-167.0,0.00022029,2]
[336582830,1724957432121,-995.68,0.00022115,2]
[336582831,1724957432130,-1000.0,0.00022466,2]
[336582832,1724957432140,-150.0,0.00022495,2]
[336582833,1724957432150,-150.0,0.000225,10]
[336582834,1724957432160,-150.0,0.00023,11]
[336582835,1724957432170,-200.0,0.00023,2]
[336582836,1724957432180,-150.0,0.00023071,2]
[336582838,1724957432189,-995.68,0.0002323,2]
[336582841,1724957432199,-150.0,0.000235,11]
[336582843,1724957432208,-150.0,0.00023648,2]
[336582845,1724957432218,-180.0,0.00023719,2]
[336582847,1724957432228,-167.0,0.00023847,2]
[336582848,1724957432238,-229.64,0.00023991,2]
[336582849,1724957432248,-614.55,0.00024,2]
[336582850,1724957432257,-150.0,0.00024,12]
[336582851,1724957432268,-160.0,0.00024095,2]
[336582852,1724957432278,-150.0,0.00024225,2]
[336582853,1724957432288,-240.0,0.00024295,2]
[336582854,1724957432297,-352.6593,0.00024302,2]
[336582855,1724957432307,-995.68,0.00024345,2]
[336582856,1724957432316,-13552.17793519,0.00024402,2]
[336582857,1724957432326,-1000.0,0.00024404,2]
[336582858,1724957432335,-150.0,0.000245,12]
[336582859,1724957432346,-361.415,0.0002468,2]
[336582860,1724957432355,-339.508,0.00024702,2]
[336582861,1724957432365,-268.0911,0.00024702,2]
[336582862,1724957432379,-5583.0098,0.00024702,2]
[336582863,1724957432389,-19181.1897,0.00024721,2]
[336582864,1724957432398,-15334.2502,0.00024721,2]
[336582865,1724957432408,-425.46,0.0002475,30]
[336582866,1724957432418,-1031.54405098,0.00024787,10]
[336582867,1724957432428,-1028.0,0.000248,4]
[336582868,1724957432438,-150.0,0.00024802,2]
[336582869,1724957432448,-17863.44307406,0.00024813,2]
[336582870,1724957432458,-17863.44307406,0.00024816,2]
[336582871,1724957432468,-17863.44307406,0.00024818,2]
[336582872,1724957432477,-280.9936,0.00024821,2]
[336582873,1724957432487,-17863.44307406,0.00024821,2]
[336582874,1724957432497,-9845.03354393,0.00024821,4]
[336582875,1724957432507,-17863.44307406,0.00024823,2]
[336582876,1724957432519,-17863.44307406,0.00024826,2]
[336582877,1724957432528,-17863.44307406,0.00024828,2]
[336582878,1724957432538,-2675.9539,0.00024831,2]
[336582879,1724957432548,-17863.44307406,0.00024831,2]
[336582880,1724957432558,-1058.69852512,0.00024831,2]
[336582881,1724957432568,-1169.97392601,0.00024841,10]
[336582882,1724957432578,-150.84,0.00024901,2]
[336582883,1724957432588,-633.96864223,0.0002491,2]
[336582884,1724957432598,-49225.1677196,0.00024911,4]
[336582885,1724957432608,-263.2636356,0.00024911,2]
[336582886,1724957432618,-118140.402527,0.00024911,4]
[336582887,1724957432629,-26090.90724509,0.00024921,4]
[336582888,1724957432642,-2238.55665297,0.00024921,4]
[336582889,1724957432655,-1525.1233529,0.00024921,4]
[336582890,1724957432667,-2566.12760066,0.00024921,4]
[336582891,1724957432679,-1552.423596,0.00024921,4]
[336582892,1724957432690,-460.43123519,0.00024921,4]
[336582893,1724957432707,-301.2900896,0.00024921,4]
[336582894,1724957432719,-658.25,0.00024921,4]
[336582895,1724957432731,-1979.5007391,0.00024921,4]
[336582896,1724957432743,-2109.43741355,0.00024921,4]
[336582897,1724957432755,-68813.32105794,0.00024921,4]
[336582898,1724957432764,-263.2636356,0.00024921,2]
[336582899,1724957432774,-263.2636356,0.00024921,2]
[336582900,1724957432784,-1358.02075,0.00024921,2]
[336582901,1724957432794,-1000.0,0.0002493,2]
[336582902,1724957432803,-1000.0,0.0002493,2]
[336582903,1724957432813,-1000.0,0.0002493,2]
[336582904,1724957432822,-1000.0,0.0002493,2]
[336582905,1724957432832,-187.0,0.0002493,15]
[336582906,1724957432842,-426.18742791,0.0002493,2]
[336582907,1724957432852,-744.0,0.00024931,2]
[336582908,1724957432861,-356.68042819,0.00024931,2]
[336582909,1724957432871,-2500.0,0.00024931,5]
[336582910,1724957432880,-300.0,0.00024931,5]
[336582911,1724957432890,-333.49734414,0.00024931,4]
[336582912,1724957432899,-2116.7,0.00024931,4]
[336582913,1724957432909,-2116.7,0.00024931,4]
[336582914,1724957432918,-2116.7,0.00024931,4]
[336582915,1724957432928,-2116.7,0.00024931,4]
[336582916,1724957432937,-2116.7,0.00024931,4]
[336582917,1724957432947,-2116.7,0.00024931,4]
[336582918,1724957432957,-2116.7,0.00024931,4]
[336582919,1724957432967,-2116.7,0.00024931,4]
[336582920,1724957432977,-1598.35916601,0.00024931,4]
[336582921,1724957433002,-518.34083399,0.00024931,4]
[336582922,1724957433013,-2116.7,0.00024931,4]
[336582923,1724957433023,-2116.7,0.00024931,4]
[336582924,1724957433033,-2116.7,0.00024931,4]
[336582925,1724957433043,-2116.7,0.00024931,4]
[336582926,1724957433052,-2116.7,0.00024931,4]
[336582927,1724957433062,-17.96237592,0.00024931,4]
[336582928,1724957433084,-2098.73762408,0.00024931,4]
[336582929,1724957433093,-1978.03489577,0.00024931,4]
[336582930,1724957433107,-138.66510423,0.00024931,4]
[336582931,1724957433118,-987.93904313,0.00024931,4]